bitfinex/quotes_BTCUSD_20220202
["timestamp","ask_amount","ask_price","bid_price","bid_amount"]
[1643787090897,0.20668616,38403.0,38402.0,0.001145]
[1643787091099,0.47791012,38403.0,38402.0,0.001145]
[1643787091295,0.74931012,38403.0,38389.0,0.1134]
[1643787091498,0.1,38402.0,38401.0,0.00114503]
[1643787091695,0.4522,38402.0,38401.0,8.906e-05]
[1643787091894,0.1522,38402.0,38401.0,8.906e-05]
[1643787092552,0.1522,38402.0,38391.0,0.09804427]
[1643787092747,0.28249534,38396.0,38391.0,0.33758328]
[1643787092947,0.0522,38395.0,38391.0,0.09804427]
[1643787093146,0.24640842,38394.0,38387.0,0.3806]
[1643787093349,0.0522,38393.0,38383.0,0.260486]
[1643787093545,0.0522,38393.0,38384.0,0.05]
[1643787093748,0.0522,38393.0,38385.0,0.065125]
[1643787093949,0.25245805,38390.0,38386.0,0.00057141]
[1643787094146,0.0522,38393.0,38386.0,0.00057141]
[1643787094346,0.0522,38393.0,38388.0,0.0778093]
[1643787095145,0.0522,38393.0,38389.0,0.00114011]
[1643787095948,0.0522,38393.0,38390.0,0.350294]
[1643787096150,0.23837948,38398.0,38392.0,0.25773382]
[1643787096393,0.438208,38398.0,38392.0,0.25773382]
[1643787096789,0.7256742,38398.0,38392.0,0.25773382]
[1643787097389,0.7256742,38398.0,38393.0,0.00113997]
[1643787098189,0.48729472,38398.0,38395.0,0.09589029]
[1643787098389,0.05810119,38399.0,38395.0,0.09589029]
[1643787098590,0.19891135,38398.0,38395.0,0.00113993]
[1643787098790,0.05810119,38399.0,38395.0,0.00113993]
[1643787098993,0.20663123,38398.0,38395.0,0.00113993]
[1643787099190,0.27268592,38397.0,38395.0,0.00113993]
[1643787099392,0.32015428,38399.0,38395.0,0.00113993]
[1643787099592,0.32015428,38399.0,38392.0,0.20708195]
[1643787099792,0.19937485,38398.0,38395.0,0.09702099]
[1643787100056,0.32015428,38399.0,38395.0,0.09702099]
[1643787100444,0.05810119,38399.0,38395.0,0.09702099]
[1643787100846,0.05810119,38399.0,38395.0,0.09588108]
[1643787101047,0.1193,38401.0,38396.0,0.19834305]
[1643787101246,0.0522,38405.0,38395.0,0.09702099]
[1643787101448,0.15,38406.0,38401.0,0.08212761]
[1643787101651,0.26055704,38405.0,38401.0,0.08212761]
[1643787102249,0.15,38406.0,38401.0,0.08212761]
[1643787102450,0.05,38406.0,38401.0,0.08212761]
[1643787104400,0.24936769,38407.0,38401.0,0.08212761]
[1643787104597,0.25064849,38407.0,38401.0,0.08212761]
[1643787104797,0.0012808,38407.0,38401.0,0.08212761]
[1643787105598,0.2638,38409.0,38401.0,0.08212761]
[1643787105798,0.23373177,38407.0,38401.0,0.08212761]
[1643787106800,0.23245894,38407.0,38401.0,0.08212761]
[1643787107005,0.23373177,38407.0,38401.0,0.08212761]
[1643787107841,0.23373177,38407.0,38399.0,0.00113979]
[1643787108045,0.23245894,38407.0,38395.0,0.01943016]
[1643787108342,0.43593175,38407.0,38399.0,0.00113979]
[1643787109042,0.58658548,38407.0,38399.0,0.00113979]
[1643787109242,0.43465894,38407.0,38397.0,0.35761603]
[1643787109444,0.43593975,38407.0,38399.0,0.00113979]
[1643787110151,0.1,38405.0,38399.0,0.00113979]
[1643787110345,0.653,38402.0,38399.0,0.00113979]
[1643787110547,0.653,38400.0,38389.0,0.02145678]
[1643787110745,0.19541988,38401.0,38399.0,0.00113979]
[1643787110944,0.76902396,38400.0,38399.0,0.00113979]
[1643787111146,2.04953597,38400.0,38399.0,0.00113979]
[1643787111592,1.81008447,38400.0,38390.0,0.10245266]
[1643787111791,1.81008447,38400.0,38389.0,0.02145678]
[1643787111792,0.33160909,38392.0,38389.0,0.02145678]
[1643787111991,0.0522,38391.0,38389.0,0.02145678]
[1643787112591,0.20225314,38390.0,38389.0,0.02145678]
[1643787112791,0.48612136,38390.0,38389.0,0.02145678]
[1643787112992,0.73387699,38390.0,38389.0,0.02145678]
[1643787113192,0.50220877,38390.0,38389.0,0.02145678]
[1643787113391,0.50220877,38390.0,38388.0,0.10057373]
[1643787113594,0.50189535,38390.0,38388.0,0.10057373]
[1643787113793,0.19941096,38389.0,38388.0,0.00114014]
[1643787113993,0.0522,38389.0,38381.0,0.05]
[1643787114192,0.25193387,38389.0,38387.0,0.00114017]
[1643787114392,0.0522,38389.0,38387.0,0.00114017]
[1643787114592,0.25270462,38389.0,38387.0,0.00114017]
[1643787114796,0.77983595,38388.0,38387.0,0.00114017]
[1643787115053,0.61301199,38388.0,38387.0,0.00114017]
[1643787115246,0.71301199,38388.0,38374.0,0.1195]
[1643787115446,0.71301199,38388.0,38386.0,0.0011402]
[1643787116546,0.23251911,38384.0,38381.0,0.08392701]
[1643787116746,0.0522,38383.0,38381.0,0.08392701]
[1643787119391,0.24621718,38382.0,38381.0,0.08392701]
[1643787119592,0.24621718,38382.0,38380.0,0.00114036]
[1643787119996,0.20013069,38381.0,38371.0,0.4474]
[1643787120194,0.24621718,38382.0,38379.0,0.00114039]
[1643787120393,0.4463585,38382.0,38372.0,2.67307618]
[1643787120595,0.24621718,38382.0,38378.0,0.10047663]
[1643787120792,0.44470764,38382.0,38378.0,0.10047663]
[1643787121193,0.24621718,38382.0,38378.0,0.10047663]
[1643787121593,0.0522,38383.0,38378.0,0.10047663]
[1643787122644,0.25988481,38382.0,38378.0,0.10047663]
[1643787122841,0.25988481,38382.0,38374.0,0.02126933]
[1643787122842,0.45899587,38382.0,38374.0,0.02126933]
[1643787123043,0.45899587,38382.0,38361.0,0.01010515]
[1643787123044,0.45899587,38382.0,38371.0,0.05]
[1643787123442,0.45899587,38382.0,38368.0,0.86069464]
[1643787123842,0.45899587,38382.0,38373.0,0.00113486]
[1643787124042,0.45899587,38382.0,38377.0,0.07884505]
[1643787125144,0.45899587,38382.0,38377.0,0.0799798]
[1643787125445,0.25988481,38382.0,38377.0,0.0799798]
[1643787126042,0.25988481,38382.0,38377.0,0.07884505]
[1643787126291,0.46230198,38382.0,38377.0,0.0799798]
[1643787126692,0.45936091,38382.0,38377.0,0.0799798]
[1643787126990,0.45933735,38382.0,38377.0,0.0799798]
[1643787127191,0.25988481,38382.0,38377.0,0.07884505]
[1643787127392,0.4656442,38382.0,38377.0,0.0799798]
[1643787127894,0.4656442,38382.0,38377.0,0.00113475]
[1643787128492,0.4656442,38382.0,38373.0,0.02189154]
[1643787128691,0.46056007,38382.0,38377.0,0.00113475]
[1643787128892,0.20343942,38381.0,38377.0,0.00113475]
[1643787129692,0.20343942,38381.0,38376.0,0.08023377]
[1643787129893,0.20343942,38381.0,38377.0,0.00113475]
[1643787130546,0.51108219,38382.0,38377.0,0.00113475]
[1643787130843,0.31208481,38382.0,38376.0,0.08023377]
[1643787131139,0.31208481,38382.0,38377.0,0.00113475]
[1643787131340,0.51176513,38382.0,38377.0,0.00113475]
[1643787131638,0.31208481,38382.0,38377.0,0.00113475]
[1643787132040,0.5120228,38382.0,38376.0,0.08023377]
[1643787132239,0.31208481,38382.0,38377.0,0.00113475]
[1643787133047,0.1,38385.0,38378.0,0.25663962]
[1643787133246,0.1,38385.0,38376.0,0.08023377]
[1643787133247,0.05,38385.0,38376.0,0.08023377]
[1643787133445,0.05,38385.0,38377.0,0.00113475]
[1643787133788,0.40834663,38387.0,38377.0,0.00113475]
[1643787133989,0.40834663,38387.0,38382.0,0.08029932]
[1643787134191,0.24308547,38384.0,38382.0,0.08029932]
[1643787134391,0.29308547,38384.0,38382.0,0.08029932]
[1643787134991,0.06514201,38392.0,38382.0,0.08029932]
[1643787135197,0.06514201,38392.0,38383.0,0.20153515]
[1643787135198,0.00511819,38391.0,38383.0,0.20153515]
[1643787135394,0.00511819,38391.0,38382.0,0.08029932]
[1643787135791,0.00590176,38394.0,38382.0,0.08029932]
[1643787135992,0.24256933,38389.0,38384.0,0.22406887]
[1643787136192,0.50323478,38393.0,38384.0,0.22406887]
[1643787136393,0.50323478,38393.0,38388.0,0.09405642]
[1643787136394,0.50274714,38393.0,38388.0,0.09405642]
[1643787136994,0.55274714,38393.0,38388.0,0.09405642]
[1643787137641,0.2089193,38390.0,38388.0,0.09405642]
[1643787137841,0.05,38390.0,38388.0,0.09405642]
[1643787138344,0.31442206,38394.0,38388.0,0.09405642]
[1643787138345,0.3676126,38393.0,38388.0,0.09405642]
[1643787138542,0.1,38393.0,38388.0,0.09405642]
[1643787138742,0.33325066,38393.0,38388.0,0.09405642]
[1643787140541,0.1,38393.0,38388.0,0.09405642]
[1643787140746,0.00127957,38394.0,38389.0,0.21902396]
[1643787140947,0.00127957,38394.0,38388.0,0.09405642]
[1643787141601,0.5736,38400.0,38390.0,0.264163]
[1643787141602,0.24030302,38396.0,38390.0,0.264163]
[1643787142004,0.00113452,38394.0,38390.0,0.264163]
[1643787142302,0.00113452,38394.0,38388.0,0.09405642]
[1643787142903,0.29030302,38396.0,38389.0,0.20067429]
[1643787143103,0.29030302,38396.0,38394.0,0.0956188]
[1643787144503,0.29030302,38396.0,38394.0,0.0955561]
[1643787144903,0.24030302,38396.0,38394.0,0.0955561]
[1643787145149,0.00113449,38397.0,38394.0,0.0955561]
[1643787145348,0.31282434,38401.0,38394.0,0.0955561]
[1643787145550,0.00113449,38397.0,38394.0,0.0955561]
[1643787146548,0.20950347,38399.0,38394.0,0.0955561]
[1643787146749,0.00115234,38397.0,38394.0,0.0955561]
[1643787147649,0.25950347,38399.0,38394.0,0.0955561]
[1643787147849,0.00115234,38397.0,38390.0,0.24281155]
[1643787148049,0.26316739,38395.0,38390.0,0.24281155]
[1643787148251,0.26316739,38395.0,38386.0,0.21679337]
[1643787149091,0.00115236,38394.0,38386.0,0.21679337]
[1643787149490,0.00115236,38394.0,38389.0,0.22523243]
[1643787149692,0.00115236,38394.0,38390.0,0.07470175]
[1643787150092,0.26316739,38395.0,38390.0,0.07470175]
[1643787150291,0.00114938,38394.0,38390.0,0.07470175]
[1643787151295,0.26285397,38395.0,38390.0,0.07470175]
[1643787151496,0.00114938,38394.0,38390.0,0.07470175]
[1643787152549,0.26285397,38395.0,38390.0,0.07470175]
[1643787152742,0.00114938,38394.0,38390.0,0.07470175]
[1643787153744,0.26285397,38395.0,38390.0,0.07470175]
[1643787153947,0.00114989,38394.0,38390.0,0.07470175]
[1643787154546,0.00114989,38394.0,38390.0,0.27197135]
[1643787154947,0.31285397,38395.0,38390.0,0.07470175]
[1643787155147,0.00114989,38394.0,38390.0,0.07470175]
[1643787156149,0.31285397,38395.0,38390.0,0.07470175]
[1643787156393,0.00114989,38394.0,38390.0,0.07470175]
[1643787156795,0.00114989,38394.0,38390.0,0.27495686]
[1643787157394,0.06512,38403.0,38390.0,0.27495686]
[1643787157595,0.0011498,38394.0,38390.0,0.27495686]
[1643787158395,0.22499067,38398.0,38390.0,0.27495686]
[1643787158796,0.5783444,38402.0,38390.0,0.27495686]
[1643787158797,0.0011498,38394.0,38390.0,0.27495686]
[1643787158996,0.0011498,38394.0,38391.0,0.350294]
[1643787159201,0.0011498,38394.0,38392.0,0.26812087]
[1643787159796,0.35844733,38402.0,38392.0,0.26812087]
[1643787160063,0.00114979,38395.0,38393.0,0.0921375]
[1643787160956,0.60484237,38402.0,38393.0,0.0921375]
[1643787161154,0.60944086,38402.0,38399.0,0.0939922]
[1643787161357,0.54474086,38402.0,38399.0,0.0939922]
[1643787162155,0.54014237,38402.0,38399.0,0.0939922]
[1643787162357,0.29489703,38402.0,38399.0,0.0939922]
[1643787163259,0.05,38402.0,38399.0,0.0939922]
[1643787163560,0.0011497,38402.0,38399.0,0.0939922]
[1643787164594,0.27942032,38404.0,38399.0,0.0939922]
[1643787164795,0.00114969,38402.0,38399.0,0.0939922]
[1643787165694,0.32942032,38404.0,38399.0,0.0939922]
[1643787165894,0.00114969,38402.0,38399.0,0.0939922]
[1643787166898,0.32942032,38404.0,38399.0,0.0939922]
[1643787167097,0.00114969,38402.0,38399.0,0.0939922]
[1643787168044,0.32942032,38404.0,38399.0,0.0939922]
[1643787168246,0.00114969,38402.0,38399.0,0.0939922]
[1643787169245,0.32942032,38404.0,38399.0,0.0939922]
[1643787169644,0.00114969,38402.0,38399.0,0.0939922]
[1643787170544,0.32942032,38404.0,38399.0,0.0939922]
[1643787170745,0.00114969,38402.0,38399.0,0.0939922]
[1643787171396,0.00114969,38402.0,38392.0,0.195327]
[1643787171596,0.00114969,38402.0,38392.0,0.130216]
[1643787171796,0.0522,38402.0,38392.0,0.130216]
[1643787172000,0.00114974,38399.0,38392.0,0.130216]
[1643787172497,0.29210348,38398.0,38393.0,0.24458214]
[1643787173198,0.00114976,38397.0,38393.0,0.24458214]
[1643787174198,0.29210348,38398.0,38393.0,0.24458214]
[1643787174398,0.00114977,38397.0,38393.0,0.24458214]
[1643787174603,0.00104047,38397.0,38393.0,0.24458214]
[1643787175246,0.29210348,38398.0,38393.0,0.24458214]
[1643787177549,0.28710348,38398.0,38393.0,0.24458214]
[1643787177949,0.27752886,38396.0,38386.0,0.32759464]
[1643787178149,0.27752886,38396.0,38383.0,0.1133]
[1643787178150,0.27122396,38395.0,38383.0,0.44089464]
[1643787178350,0.0522,38395.0,38384.0,0.21844521]
[1643787178552,0.0522,38395.0,38387.0,0.5]
[1643787179194,0.29634195,38392.0,38387.0,0.85924526]
[1643787179395,0.29634195,38392.0,38387.0,0.5]
[1643787179595,0.29634195,38392.0,38383.0,0.44089464]
[1643787179799,0.0522,38391.0,38384.0,0.32759464]
[1643787179995,0.0522,38391.0,38383.0,0.44089464]
[1643787180198,0.0522,38391.0,38383.0,0.32759464]
[1643787180496,0.0522,38391.0,38387.0,0.09405863]
[1643787180895,0.0522,38391.0,38383.0,0.32759464]
[1643787181697,0.0522,38391.0,38383.0,0.37759464]
[1643787182198,0.0522,38391.0,38384.0,0.20942502]
[1643787182647,0.0522,38391.0,38384.0,0.32759464]
[1643787182847,0.0522,38391.0,38383.0,0.32759464]
[1643787183049,0.19753562,38390.0,38383.0,0.32759464]
[1643787183247,0.19753562,38390.0,38382.0,0.32759464]
[1643787183846,0.19753562,38390.0,38385.0,0.27819478]
[1643787184348,0.0522,38391.0,38385.0,0.27819478]
[1643787184954,0.0522,38391.0,38387.0,0.0933882]
[1643787186597,0.0522,38391.0,38385.0,0.27819478]
[1643787186897,0.0522,38391.0,38384.0,0.0206173]
[1643787187296,0.0522,38391.0,38383.0,0.39272264]
[1643787188698,0.21452992,38387.0,38383.0,0.47468844]
[1643787188900,0.0522,38391.0,38384.0,0.5]
[1643787189398,0.25213592,38391.0,38382.0,0.32759464]
[1643787189597,0.30213592,38391.0,38382.0,0.32759464]
[1643787189800,0.24359927,38389.0,38381.0,0.37759464]
[1643787190060,0.20003862,38388.0,38381.0,0.32759464]
[1643787190249,0.1992114,38388.0,38381.0,0.32759464]
[1643787190453,0.1992114,38388.0,38379.0,0.32872987]
[1643787190454,0.0522,38387.0,38379.0,0.32872987]
[1643787190651,0.0522,38387.0,38379.0,0.00113523]
[1643787190849,0.23466982,38382.0,38378.0,0.38447824]
[1643787191051,0.23466982,38382.0,38379.0,0.00113523]
[1643787191251,0.52263892,38382.0,38379.0,0.00113523]
[1643787191652,0.0522,38381.0,38379.0,0.00113523]
[1643787192049,0.0522,38381.0,38376.0,0.07896382]
[1643787192250,0.0522,38381.0,38378.0,0.00113526]
[1643787193251,0.0522,38381.0,38376.0,0.07896382]
[1643787193451,0.0522,38381.0,38378.0,0.00113528]
[1643787193650,0.20894644,38380.0,38378.0,0.00113528]
[1643787194104,0.25894644,38380.0,38378.0,0.00113528]
[1643787194304,0.05,38380.0,38378.0,0.00113528]
[1643787194606,0.22007152,38379.0,38373.0,0.34770948]
[1643787194907,0.3022,38378.0,38377.0,0.00113529]
[1643787195605,0.1522,38378.0,38377.0,0.00113529]
[1643787195805,0.24566702,38372.0,38370.0,0.10069551]
[1643787196005,0.1022,38372.0,38370.0,0.10069551]
[1643787196205,0.1022,38372.0,38365.0,0.45140761]
[1643787196406,0.1022,38372.0,38365.0,0.32880761]
[1643787196605,0.0522,38372.0,38363.0,0.32880761]
[1643787197005,0.06516857,38371.0,38363.0,0.32880761]
[1643787197205,0.22502972,38370.0,38366.0,0.21868764]
[1643787197652,0.27502972,38370.0,38366.0,0.00113563]
[1643787198058,0.27502972,38370.0,38363.0,0.32880761]
[1643787198253,0.27502972,38370.0,38366.0,0.00113562]
[1643787198454,0.27502972,38370.0,38366.0,0.09684234]
[1643787199354,0.20301452,38369.0,38362.0,0.32880761]
[1643787199554,0.20301452,38369.0,38366.0,0.00113562]
[1643787199756,0.27502972,38370.0,38366.0,0.00113562]
[1643787200354,0.19984699,38369.0,38366.0,0.00113562]
[1643787200553,0.27502972,38370.0,38366.0,0.08051043]
[1643787200757,0.27502972,38370.0,38366.0,0.08164605]
[1643787201798,0.27502972,38370.0,38366.0,0.08051043]
[1643787201998,0.27502972,38370.0,38366.0,0.0816456]
[1643787203001,0.27502972,38370.0,38366.0,0.08051043]
[1643787203201,0.27502972,38370.0,38366.0,0.0816456]
[1643787203804,0.27502972,38370.0,38366.0,0.00113517]
[1643787203805,0.19979034,38369.0,38366.0,0.00113517]
[1643787204008,0.0522,38369.0,38366.0,0.00113517]
[1643787204204,0.0522,38369.0,38361.0,0.01]
[1643787204405,0.0522,38369.0,38366.0,0.00113518]
[1643787205251,0.0522,38369.0,38364.0,0.07678964]
[1643787205452,0.0522,38369.0,38366.0,0.00113518]
[1643787206252,0.20648062,38368.0,38366.0,0.00113518]
[1643787206451,0.25648062,38368.0,38364.0,0.07678964]
[1643787206654,0.25648062,38368.0,38365.0,0.00113565]
[1643787206851,0.05,38368.0,38365.0,0.00113565]
[1643787207252,0.48031541,38370.0,38365.0,0.00113565]
[1643787207652,0.48031541,38370.0,38361.0,0.26821726]
[1643787207952,0.48031541,38370.0,38366.0,0.00113563]
[1643787208999,0.25005435,38366.0,38361.0,0.01]
[1643787210200,0.51361883,38367.0,38361.0,0.01]
[1643787210400,0.51361883,38367.0,38362.0,0.00113575]
[1643787211002,0.05,38370.0,38366.0,0.28233179]
[1643787211305,0.53742568,38371.0,38365.0,0.09234691]
[1643787211306,0.05,38371.0,38365.0,0.09234691]
[1643787211500,0.05,38371.0,38366.0,0.00113562]
[1643787211704,0.0522,38372.0,38366.0,0.00113562]
[1643787211705,0.1522,38372.0,38366.0,0.00113562]
[1643787211900,0.22535055,38371.0,38366.0,0.00113562]
[1643787212302,0.32336251,38370.0,38366.0,0.00113562]
[1643787212557,0.32336251,38370.0,38361.0,0.01]
[1643787212850,0.32336251,38370.0,38366.0,0.00113562]
[1643787213252,0.21062632,38369.0,38366.0,0.00113562]
[1643787213650,0.21062632,38369.0,38362.0,0.28329871]
[1643787213853,0.32336251,38370.0,38366.0,0.00113563]
[1643787214050,0.20250298,38369.0,38366.0,0.00113563]
[1643787214851,0.20250298,38369.0,38362.0,0.28329871]
[1643787215054,0.45370874,38370.0,38366.0,0.00113563]
[1643787215652,0.18034623,38370.0,38366.0,0.00113563]
[1643787215854,0.13033511,38376.0,38366.0,0.00113563]
[1643787216053,0.5846,38377.0,38364.0,0.2330599]
[1643787216309,0.5846,38377.0,38369.0,0.00113554]
[1643787216512,0.32612996,38375.0,38369.0,0.26008663]
[1643787216709,0.49890821,38375.0,38369.0,0.26008663]
[1643787216910,0.49890821,38375.0,38372.0,0.08234168]
[1643787217110,0.34337825,38375.0,38372.0,0.08234168]
[1643787217310,0.4082281,38375.0,38372.0,0.08234168]
[1643787217513,0.4082281,38375.0,38372.0,0.08347714]
[1643787217712,0.20299353,38374.0,38372.0,0.00113546]
[1643787217911,0.20298136,38374.0,38372.0,0.00113546]
[1643787218512,0.4082281,38375.0,38363.0,0.1156]
[1643787218513,0.4082281,38375.0,38367.0,0.02105794]
[1643787218711,0.30451311,38374.0,38371.0,0.00113547]
[1643787218911,0.21966272,38372.0,38371.0,0.00113547]
[1643787219315,0.47242321,38372.0,38371.0,0.00113547]
[1643787219513,0.47239879,38372.0,38371.0,0.00113547]
[1643787219712,0.47239879,38372.0,38363.0,0.1156]
[1643787219911,0.29990654,38364.0,38363.0,0.1156]
[1643787220151,0.29990654,38364.0,38361.0,0.01]
[1643787220351,0.55425397,38364.0,38361.0,0.01]
[1643787220754,0.29990654,38364.0,38361.0,0.01]
[1643787221152,0.29990654,38364.0,38361.0,0.01113578]
[1643787222053,0.29990654,38364.0,38361.0,0.01]
[1643787222256,0.29990654,38364.0,38361.0,0.01113578]
[1643787222654,0.28451177,38368.0,38361.0,0.01113578]
[1643787223055,0.05,38368.0,38361.0,0.01113578]
[1643787223256,0.06517036,38369.0,38361.0,0.01]
[1643787223257,0.11517036,38369.0,38361.0,0.01]
[1643787223459,0.06517036,38369.0,38363.0,0.00113572]
[1643787223657,0.5789108,38369.0,38363.0,0.00113572]
[1643787223902,0.6289108,38369.0,38363.0,0.00113572]
[1643787224102,0.98402024,38369.0,38363.0,0.00113572]
[1643787224413,0.98402024,38369.0,38365.0,0.07936033]
[1643787224805,0.98402024,38369.0,38364.0,0.00113568]
[1643787225102,0.98402024,38369.0,38361.0,0.00613568]
[1643787225703,0.6289108,38369.0,38361.0,0.00613568]
[1643787226402,0.34828044,38369.0,38361.0,0.00613568]
[1643787227203,0.34828044,38369.0,38362.0,0.00056645]
[1643787227403,0.34828044,38369.0,38363.0,0.09525981]
[1643787227404,0.5967472,38369.0,38363.0,0.09525981]
[1643787228065,0.34828044,38369.0,38363.0,0.09525981]
[1643787229065,0.12762195,38369.0,38367.0,0.24735664]
[1643787229267,0.12762195,38369.0,38363.0,0.09525981]
[1643787229968,0.06516721,38371.0,38363.0,0.09525981]
[1643787230768,0.30581927,38368.0,38363.0,0.09525981]
[1643787230967,0.37099145,38368.0,38363.0,0.09525981]
[1643787231168,0.30581927,38368.0,38363.0,0.09525981]
[1643787233613,0.33038191,38371.0,38363.0,0.42366364]
[1643787233912,0.11516826,38371.0,38365.0,0.32840383]
[1643787234313,0.06516826,38371.0,38370.0,0.07899133]
[1643787234913,0.06516826,38371.0,38370.0,0.3038452]
[1643787235161,0.06516393,38373.0,38370.0,0.3038452]
[1643787237860,0.06516393,38373.0,38370.0,0.07899133]
[1643787238061,0.13033193,38373.0,38368.0,0.32840383]
[1643787238361,0.18033193,38373.0,38368.0,0.32840383]
[1643787239201,0.18033193,38373.0,38368.0,0.40385056]
[1643787239800,0.18033193,38373.0,38369.0,0.32840383]
[1643787240202,0.18033193,38373.0,38368.0,0.40385056]
[1643787240401,0.23041194,38372.0,38368.0,0.40385056]
[1643787241702,0.24996601,38370.0,38368.0,0.40385056]
[1643787241901,0.36513623,38370.0,38368.0,0.32840383]
[1643787242103,0.36337262,38370.0,38368.0,0.32840383]
[1643787246601,0.11340661,38370.0,38368.0,0.32840383]
[1643787246801,0.06517022,38370.0,38368.0,0.32840383]
[1643787248902,0.02040221,38370.0,38368.0,0.32840383]
[1643787249302,0.02040221,38370.0,38365.0,0.60019979]
[1643787249303,0.02040221,38370.0,38366.0,0.32840383]
[1643787250154,0.02040221,38370.0,38365.0,0.43141624]
[1643787250352,0.02040221,38370.0,38365.0,0.32840383]
[1643787250549,0.38672147,38370.0,38364.0,0.32840383]
[1643787250749,0.20139427,38369.0,38364.0,0.32840383]
[1643787251549,0.43672147,38370.0,38364.0,0.60417904]
[1643787251949,0.43672147,38370.0,38364.0,0.32840383]
[1643787253050,0.50189447,38370.0,38364.0,0.32840383]
[1643787253650,0.2039143,38369.0,38364.0,0.32840383]
[1643787253906,0.2690903,38369.0,38364.0,0.32840383]
[1643787254105,0.2690903,38369.0,38363.0,0.32840383]
[1643787254305,0.43672147,38370.0,38364.0,0.32840383]
[1643787254504,0.43640783,38370.0,38364.0,0.32840383]
[1643787254706,0.38640783,38370.0,38364.0,0.32840383]
[1643787255208,0.58546983,38370.0,38363.0,0.32840383]
[1643787255409,0.38640783,38370.0,38363.0,0.32840383]
[1643787255606,0.36631926,38370.0,38364.0,0.32840383]
[1643787255905,0.57007718,38370.0,38364.0,0.32840383]
[1643787256105,0.36631926,38370.0,38364.0,0.32840383]
[1643787257106,0.63783144,38370.0,38364.0,0.32840383]
[1643787257309,0.06517267,38369.0,38364.0,0.32840383]
[1643787258355,0.06517267,38369.0,38363.0,0.32840383]
[1643787258557,0.19982195,38368.0,38363.0,0.32840383]
[1643787258957,0.06517267,38369.0,38363.0,0.32840383]
[1643787259158,0.43149226,38370.0,38363.0,0.32840383]
[1643787259359,0.63108938,38370.0,38363.0,0.32840383]
[1643787259558,0.23670818,38365.0,38363.0,0.32840383]
[1643787260562,0.2352969,38365.0,38363.0,0.32840383]
[1643787262208,0.2352969,38365.0,38362.0,0.32953389]
[1643787262209,0.22447204,38364.0,38362.0,0.32953389]
[1643787262410,0.34185807,38364.0,38362.0,0.00113006]
[1643787262605,0.24020229,38363.0,38362.0,0.00113006]
[1643787262804,0.34240229,38363.0,38362.0,0.00113006]
[1643787263005,0.34240229,38363.0,38361.0,0.00613568]
[1643787263208,0.21461036,38362.0,38361.0,0.00726578]
[1643787263405,0.26681036,38362.0,38361.0,0.00726578]
[1643787263806,0.36681036,38362.0,38361.0,0.00726578]
[1643787264106,0.36681036,38362.0,38361.0,0.00613568]
[1643787264805,0.2022,38362.0,38361.0,0.00613568]
[1643787265256,0.32182282,38362.0,38361.0,0.00613568]
[1643787265654,0.42182282,38362.0,38361.0,0.00613568]
[1643787266054,0.2022,38362.0,38361.0,0.00613568]
[1643787266255,0.23699867,38362.0,38361.0,0.00613568]
[1643787266456,0.45662149,38362.0,38361.0,0.00613568]
[1643787266656,0.42182282,38362.0,38361.0,0.00613568]
[1643787268459,0.45799636,38362.0,38361.0,0.00613568]
[1643787271110,0.06519226,38360.0,38352.0,0.00452136]
[1643787271307,0.32723549,38359.0,38351.0,0.01]
[1643787271807,0.21322635,38355.0,38351.0,0.01]
[1643787272010,0.51879374,38355.0,38351.0,0.01]
[1643787272208,0.24109287,38352.0,38351.0,0.01]
[1643787272407,0.13845258,38352.0,38351.0,0.56]
[1643787272960,0.13845258,38352.0,38351.0,0.01]
[1643787273862,0.30556739,38355.0,38351.0,0.01]
[1643787274262,0.35556739,38355.0,38351.0,0.01]
[1643787275064,0.30896594,38354.0,38351.0,0.01112473]
[1643787276063,0.30896594,38354.0,38351.0,0.01]
[1643787276504,0.30896594,38354.0,38351.0,0.01112474]
[1643787277303,0.30896594,38354.0,38351.0,0.01]
[1643787277505,0.30896594,38354.0,38351.0,0.01112474]
[1643787278604,0.30896594,38354.0,38351.0,0.01]
[1643787278907,0.30896594,38354.0,38351.0,0.01112474]
[1643787279806,0.30896594,38354.0,38351.0,0.01]
[1643787280067,0.30896594,38354.0,38351.0,0.01112474]
[1643787280862,0.30896594,38354.0,38351.0,0.01]
[1643787281062,0.30896594,38354.0,38351.0,0.01112474]
[1643787282165,0.30896594,38354.0,38351.0,0.01]
[1643787282363,0.30896594,38354.0,38351.0,0.01112474]
[1643787282965,0.51373482,38354.0,38351.0,0.01112474]
[1643787283165,0.51536918,38354.0,38351.0,0.01112474]
[1643787283365,0.51536918,38354.0,38351.0,0.01]
[1643787283566,0.51536918,38354.0,38351.0,0.01112474]
[1643787283804,0.64577158,38354.0,38351.0,0.01112474]
[1643787284004,0.69797158,38354.0,38351.0,0.01112474]
[1643787284306,0.56756918,38354.0,38351.0,0.01112474]
[1643787284503,0.56756918,38354.0,38351.0,0.01]
[1643787284703,0.15,38353.0,38351.0,0.01112474]
[1643787284904,0.29467588,38352.0,38351.0,0.01112474]
[1643787285707,0.27175128,38352.0,38351.0,0.01]
[1643787285904,0.33128531,38346.0,38345.0,0.130416]
[1643787286105,0.38348531,38346.0,38345.0,0.130416]
[1643787286305,0.58718824,38346.0,38345.0,0.130416]
[1643787286504,0.87336139,38346.0,38345.0,0.130416]
[1643787289354,0.87336139,38346.0,38345.0,0.065206]
[1643787289658,0.66965846,38346.0,38345.0,0.065206]
[1643787290055,0.66965846,38346.0,38344.0,0.00112495]
[1643787290056,0.87741279,38346.0,38344.0,0.00112495]
[1643787290256,0.66965846,38346.0,38344.0,0.00112495]
[1643787290657,0.66965846,38346.0,38341.0,0.01]
[1643787290856,0.66965846,38346.0,38343.0,0.00112496]
[1643787291305,0.22228905,38344.0,38343.0,0.00112496]
[1643787291506,0.27448905,38344.0,38343.0,0.00112496]
[1643787291706,0.27417537,38344.0,38341.0,0.01]
[1643787291906,0.0522,38344.0,38339.0,0.05669954]
[1643787292107,0.0522,38344.0,38342.0,0.00112501]
[1643787292506,0.17356042,38346.0,38342.0,0.00112501]
[1643787292911,0.37269618,38346.0,38339.0,0.05669954]
[1643787293109,0.22276255,38344.0,38342.0,0.00112499]
[1643787294209,0.22276255,38344.0,38339.0,0.05669954]
[1643787294510,0.22276255,38344.0,38341.0,0.00112502]
[1643787294511,0.26414831,38342.0,38341.0,0.00112502]
[1643787295158,0.31414831,38342.0,38341.0,0.00112502]
[1643787295360,0.52880547,38342.0,38333.0,0.32877613]
[1643787295557,0.52880547,38342.0,38340.0,0.00112507]
[1643787295757,0.27628672,38341.0,38340.0,0.00112507]
[1643787296657,0.27628672,38341.0,38332.0,0.32877613]
[1643787296858,0.27628672,38341.0,38339.0,0.0011251]
[1643787297559,0.20625565,38340.0,38339.0,0.0011251]
[1643787297757,0.20625565,38340.0,38332.0,0.32877613]
[1643787297957,0.58559869,38342.0,38338.0,0.00112513]
[1643787298802,0.20454785,38340.0,38338.0,0.00112513]